bitfinex/quotes_ETHUSD_20241001
["timestamp","ask_amount","ask_price","bid_price","bid_amount"]
[1727797763807,5.58306,2532.4,2531.6,3.95002]
[1727797763808,4.507306,2532.3,2531.9,3.94958]
[1727797764292,1.6342,2532.4,2532.0,7.89879]
[1727797764492,1.6342,2532.4,2531.9,3.94958]
[1727797764703,1.6342,2532.4,2531.3,1.6137]
[1727797764704,3.94917,2532.2,2531.7,3.94977]
[1727797764987,3.94913,2532.3,2531.7,7.89958]
[1727797765202,3.94946,2532.0,2531.5,3.95013]
[1727797765676,3.94998,2531.7,2531.2,3.95068]
[1727797765998,0.789867,2532.0,2530.8,3.95121]
[1727797765999,3.95008,2531.6,2530.8,3.95121]
[1727797766148,1.5689,2531.5,2531.2,3.95069]
[1727797766347,5.51923,2531.5,2531.0,3.95093]
[1727797766665,6.466141,2531.5,2530.7,1.5616]
[1727797766992,3.0,2531.8,2530.7,5.51303]
[1727797767199,1.5538,2531.9,2531.6,3.94995]
[1727797767484,1.5538,2531.9,2531.6,3.95007]
[1727797767902,1.5538,2531.9,2531.6,3.94998]
[1727797768110,2.104119,2531.9,2531.6,3.94998]
[1727797768723,1.5538,2531.9,2531.7,3.94984]
[1727797768871,1.5505,2532.3,2531.6,3.95007]
[1727797769074,1.61417163,2532.5,2532.2,3.94913]
[1727797769301,4.87531424,2532.5,2531.9,3.94947]
[1727797769609,4.87531424,2532.5,2532.0,3.94929]
[1727797769610,0.92656424,2532.5,2532.0,3.94929]
[1727797769807,0.92656424,2532.5,2532.1,3.94919]
[1727797769977,4.87522424,2532.5,2532.0,3.94937]
[1727797770396,3.89882,2532.4,2531.9,3.94959]
[1727797770707,1.04113442,2532.4,2532.0,3.94943]
[1727797770915,3.94867,2532.5,2532.0,3.94931]
[1727797771200,3.9489,2532.4,2532.0,3.9494]
[1727797771407,3.9489,2532.4,2531.9,3.94956]
[1727797771987,5.06380016,2532.4,2531.8,3.94973]
[1727797772191,7.89812,2532.3,2531.7,7.89957]
[1727797772477,3.94902,2532.3,2531.7,3.94976]
[1727797772871,5.06379016,2532.4,2531.8,3.94963]
[1727797773071,16.31147163,2532.6,2532.2,3.94911]
[1727797773284,14.6973,2532.6,2532.2,3.94911]
[1727797773571,14.6973,2532.6,2532.2,3.94905]
[1727797773879,18.64583,2532.6,2532.2,3.94905]
[1727797774095,18.64583,2532.6,2532.1,3.94927]
[1727797774302,21.06667616,2532.6,2532.1,3.94927]
[1727797774980,17.11814616,2532.6,2532.2,3.9491]
[1727797775497,3.94874,2532.5,2532.0,3.94936]
[1727797775700,3.94884,2532.4,2532.0,3.94936]
[1727797776011,3.94874,2532.5,2531.5,5.47187]
[1727797776012,1.6233,2532.5,2531.7,3.94977]
[1727797776168,1.562,2532.1,2531.7,3.94977]
[1727797776372,1.61417163,2532.4,2532.0,3.94944]
[1727797776579,3.17617163,2532.5,2532.0,3.94944]
[1727797776782,1.562,2532.5,2532.2,3.94913]
[1727797777371,1.562,2532.5,2532.0,3.94944]
[1727797777372,1.562,2532.5,2532.3,3.94884]
[1727797777568,14.67417163,2532.6,2531.9,3.94958]
[1727797777569,3.94852,2532.6,2532.1,3.94921]
[1727797777807,4.65668916,2532.6,2532.1,3.94921]
[1727797778317,6.27086079,2532.6,2532.0,3.94944]
[1727797778518,6.27086079,2532.6,2531.9,3.94947]
[1727797778519,1.6457,2532.3,2531.9,3.94953]
[1727797778720,3.94913,2532.2,2531.7,3.94988]
[1727797778875,4.67003016,2532.2,2531.7,3.94983]
[1727797779271,4.67003016,2532.2,2531.6,3.94993]
[1727797779272,3.94938,2532.1,2531.6,3.95005]
[1727797779490,3.94938,2532.1,2531.6,7.90004]
[1727797779715,6.28420179,2532.2,2531.7,3.9498]
[1727797779895,3.94934,2532.1,2531.7,3.9498]
[1727797780101,3.94934,2532.1,2531.6,3.94999]
[1727797780284,3.94934,2532.1,2531.6,3.94995]
[1727797780285,1.39467008,2532.1,2531.6,3.94995]
[1727797780489,5.34398008,2532.1,2531.6,3.94995]
[1727797780711,1.39467008,2532.1,2531.7,3.94983]
[1727797781005,3.71452224,2532.3,2531.7,3.94983]
[1727797781006,3.25987163,2532.3,2531.7,3.94978]
[1727797781217,5.56330163,2532.2,2531.8,3.94966]
[1727797781374,5.56330163,2532.2,2531.7,3.94978]
[1727797781570,5.56330163,2532.2,2531.4,3.95037]
[1727797781571,3.94967,2531.9,2531.4,3.95037]
[1727797781785,3.94967,2531.9,2531.2,3.95069]
[1727797782017,3.26687163,2532.0,2531.1,3.95072]
[1727797782018,5.52253,2531.6,2531.1,3.95072]
[1727797782679,3.95023,2531.5,2530.9,3.95105]
[1727797782883,3.95071,2531.2,2530.5,3.95168]
[1727797783090,5.52357,2530.9,2530.3,3.95199]
[1727797783505,5.52357,2530.9,2530.3,7.904]
[1727797783717,1.5724,2530.9,2530.6,3.95155]
[1727797784284,1.5724,2530.9,2530.5,3.95178]
[1727797784687,3.9514,2530.8,2530.3,3.95199]
[1727797784876,3.9514,2530.8,2530.1,3.95231]
[1727797784877,3.9514,2530.8,2530.2,3.95225]
[1727797785077,1.561,2530.6,2530.1,3.95231]
[1727797785299,1.5293,2530.5,2529.7,3.95298]
[1727797785472,1.5293,2530.5,2530.1,3.95232]
[1727797786423,1.5293,2530.5,2529.9,3.95262]
[1727797786424,5.48117,2530.5,2530.0,3.95255]
[1727797786900,1.5293,2530.5,2530.1,3.95232]
[1727797787099,1.5293,2530.5,2530.3,3.95209]
[1727797787412,1.5293,2530.5,2529.9,3.95264]
[1727797787624,3.95202,2530.4,2529.9,3.95264]
[1727797787925,1.5293,2530.5,2529.7,3.953]
[1727797788100,1.5293,2530.5,2530.2,3.95212]
[1727797788878,1.5293,2530.5,2530.2,4.347332]
[1727797789084,1.6506,2530.9,2530.4,7.90375]
[1727797789305,1.6506,2530.9,2530.5,3.95163]
[1727797789628,1.6506,2530.9,2530.2,0.395212]
[1727797789794,3.95047,2531.4,2530.7,3.95132]
[1727797789795,5.56945,2531.3,2530.7,3.95132]
[1727797789983,1.6188,2531.3,2530.8,3.95122]
[1727797790178,1.6188,2531.3,2531.1,3.95083]
[1727797790389,1.6188,2531.3,2531.0,3.95091]
[1727797790779,1.6188,2531.3,2530.8,3.95122]
[1727797790979,1.6188,2531.3,2531.0,3.95099]
[1727797791427,5.48976,2531.6,2531.1,3.9508]
[1727797791918,5.48976,2531.6,2531.0,4.741211]
[1727797792230,5.48976,2531.6,2531.0,3.9509]
[1727797792424,3.95048,2531.4,2530.8,3.9512]
[1727797792725,3.95095,2531.1,2530.6,3.95153]
[1727797792927,5.5173,2531.0,2530.6,3.95153]
[1727797793226,5.5173,2531.0,2530.2,1.948812]
[1727797793227,3.95132,2530.8,2530.2,1.948812]
[1727797793380,3.95174,2530.6,2530.1,3.95237]
[1727797793581,3.95148,2530.7,2530.1,3.95237]
[1727797793812,7.90304,2530.7,2530.1,3.95237]
[1727797794016,3.95148,2530.7,2530.1,3.95237]
[1727797794525,1.5956,2530.6,2530.1,3.95237]
[1727797794685,5.54724,2530.6,2530.1,3.95237]
[1727797794883,1.5956,2530.6,2530.1,3.95233]
[1727797795117,1.5956,2530.6,2530.2,3.95223]
[1727797795317,1.5956,2530.6,2530.1,4.347563]
[1727797795540,1.5956,2530.6,2530.2,3.95223]
[1727797796329,3.95178,2530.5,2529.9,3.9526]
[1727797796485,4.506518,2530.5,2529.9,3.9526]
[1727797796819,4.506628,2530.5,2529.9,3.95272]
[1727797797031,4.506658,2530.5,2529.9,3.95265]
[1727797797327,4.506658,2530.5,2529.7,3.95293]
[1727797797328,0.554738,2530.5,2529.7,3.95293]
[1727797797524,3.95226,2530.2,2529.8,3.95283]
[1727797797828,3.95226,2530.2,2529.7,3.95293]
[1727797798201,3.95226,2530.2,2529.7,7.90589]
[1727797798550,3.95279,2529.9,2529.3,3.95364]
[1727797798773,3.95269,2530.0,2529.5,3.95332]
[1727797799045,3.95273,2529.9,2529.3,3.95351]
[1727797799640,3.95273,2529.9,2529.2,3.9538]
[1727797799641,1.6655,2529.6,2529.2,3.9538]
[1727797800113,1.6655,2529.6,2529.1,3.95386]
[1727797800441,5.61875,2529.6,2529.1,3.95386]
[1727797800657,3.95363,2529.4,2528.8,3.95435]
[1727797800936,0.957192,2529.5,2528.9,3.95425]
[1727797801137,5.61877,2529.6,2529.0,3.95411]
[1727797801347,3.95335,2529.5,2528.9,3.9542]
[1727797801554,3.95335,2529.5,2528.9,3.95418]
[1727797801762,5.61877,2529.6,2529.0,3.95412]
[1727797802235,5.61877,2529.6,2528.6,0.1237391]
[1727797802236,3.95335,2529.5,2528.7,3.95449]
[1727797802423,3.95362,2529.4,2528.8,3.95441]
[1727797802874,3.95414,2529.0,2528.6,0.1237391]
[1727797803147,5.6073,2528.7,2528.6,0.1237391]
[1727797803365,21.6673,2528.7,2528.6,0.1237391]
[1727797803546,25.32926164,2528.7,2528.6,0.1237391]
[1727797803716,17.82466164,2528.7,2528.6,0.1237391]
[1727797803899,18.6673,2528.7,2528.6,0.1237391]
[1727797804099,1.6527,2528.7,2528.6,0.1237391]
[1727797805315,1.6142,2529.1,2528.6,4.0783791]
[1727797806157,17.01357,2529.4,2528.6,0.1237391]
[1727797806158,5.61409,2529.4,2528.6,0.1237391]
[1727797806331,5.61409,2529.4,2529.0,3.95404]
[1727797806332,1.6605,2529.4,2529.0,3.95404]
[1727797806673,1.6605,2529.4,2529.0,4.744943]
[1727797806877,1.6133,2529.8,2529.4,3.95339]
[1727797807594,1.6133,2529.8,2529.1,3.95386]
[1727797807595,5.56628,2529.8,2529.3,3.95364]
[1727797807889,3.95306,2529.7,2529.1,3.95382]
[1727797808054,1.6133,2529.8,2529.2,3.95373]
[1727797808242,1.5244,2530.1,2529.5,3.95325]
[1727797808440,3.95256,2530.0,2529.5,3.95325]
[1727797809222,1.5244,2530.1,2529.5,3.95323]
[1727797809545,1.5244,2530.4,2529.9,3.95264]
[1727797809895,1.5244,2530.4,2529.9,4.347874]
[1727797810052,1.5244,2530.4,2529.9,0.395264]
[1727797810242,5.47644,2530.4,2529.9,4.347904]
[1727797810449,1.6624,2530.8,2530.4,3.95183]
[1727797810692,1.6624,2530.8,2530.4,4.347013]
[1727797810843,1.6624,2530.8,2530.5,3.95176]
[1727797811047,0.41331505,2531.0,2530.6,3.95162]
[1727797811244,1.6624,2531.1,2530.7,3.95144]
[1727797811728,1.6624,2531.1,2530.4,2.005883]
[1727797811985,1.6624,2531.1,2530.6,7.90306]
[1727797812148,1.6624,2531.1,2530.6,7.90307]
[1727797812343,3.95048,2531.4,2530.8,3.95123]
[1727797812344,5.61288,2531.4,2530.8,3.95123]
[1727797812682,5.61288,2531.4,2530.6,3.95154]
[1727797812683,3.9507,2531.2,2530.6,3.95152]
[1727797812886,3.9507,2531.2,2530.6,7.90305]
[1727797813191,3.95063,2531.3,2530.8,3.95131]
[1727797813479,4.906981,2531.3,2530.8,3.95131]
[1727797813683,5.61288,2531.4,2530.9,3.95114]
[1727797813901,5.61288,2531.4,2530.8,7.90238]
[1727797814192,3.95058,2531.3,2530.8,3.95119]
[1727797814704,1.6624,2531.4,2530.4,1.6107]
[1727797814850,1.6193,2531.7,2531.3,3.95052]
[1727797815058,4.3631248,2531.8,2531.3,3.95052]
[1727797815059,0.4132748,2531.8,2531.3,3.95052]
[1727797815396,1.6193,2532.0,2531.5,3.95014]
[1727797815558,3.9484,2532.7,2531.7,3.94988]
[1727797815559,1.6193,2532.4,2531.7,3.94988]
[1727797815761,3.94907,2532.3,2531.7,3.94988]
[1727797815945,3.94931,2532.1,2531.6,3.95001]
[1727797816146,3.94907,2532.3,2531.8,3.94975]
[1727797816346,1.82255262,2532.4,2531.0,10.04926642]
[1727797816543,3.94928,2532.2,2531.0,4.5514]
[1727797816796,3.94928,2532.2,2531.7,3.9499]
[1727797817097,5.77137262,2532.4,2531.9,3.94953]
[1727797817257,4.36184621,2532.6,2532.0,3.94933]
[1727797817258,1.5398,2532.5,2532.0,3.94933]
[1727797817660,1.5398,2532.5,2531.9,3.94952]
[1727797817905,5.48787,2532.9,2532.3,3.94889]
[1727797818119,1.5398,2532.9,2532.4,3.94881]
[1727797818409,3.94762,2533.2,2532.5,3.94856]
[1727797818612,3.94773,2533.1,2532.6,4.343216]
[1727797818813,3.94773,2533.1,2532.5,3.94856]
[1727797819110,7.89534,2533.2,2532.6,3.94842]
[1727797819277,3.94762,2533.2,2532.6,3.94842]
[1727797819479,3.94762,2533.2,2532.5,3.94856]
[1727797819684,3.94781,2533.1,2532.5,3.94856]
[1727797819992,1.5756,2533.3,2532.3,5.46507]
[1727797819993,3.94788,2533.0,2532.3,3.94887]
[1727797820297,7.89629,2532.9,2532.3,3.94893]
[1727797820512,1.5756,2533.3,2531.9,2.039352]
[1727797820513,3.0,2533.1,2531.9,2.039352]
[1727797820727,3.94844,2532.7,2532.2,3.94913]
[1727797821481,3.94844,2532.7,2532.2,0.394913]
[1727797821740,3.94844,2532.7,2532.1,3.94918]
[1727797821889,3.94844,2532.7,2532.1,7.89837]
[1727797822091,3.94844,2532.7,2531.9,2.039352]
[1727797822092,5.58811,2532.6,2531.7,1.6514]
[1727797822423,3.94896,2532.4,2531.9,3.94952]
[1727797822730,3.94896,2532.4,2531.5,3.95014]
[1727797822731,3.94935,2532.1,2531.5,3.95014]
[1727797823056,3.94935,2532.1,2531.0,3.95097]
[1727797823057,3.95001,2531.7,2531.1,3.95077]
[1727797823206,3.95047,2531.4,2530.9,1.5296]
[1727797823397,1.6332,2531.6,2531.0,3.95099]
[1727797823639,5.58336,2531.6,2530.9,1.5296]
[1727797823929,3.95024,2531.5,2531.0,3.95099]
[1727797824281,1.6332,2531.6,2531.1,3.95083]
[1727797824485,3.94981,2531.8,2531.2,3.95059]
[1727797824899,7.89969,2531.8,2531.2,3.95059]
[1727797825095,3.94981,2531.8,2531.2,3.95059]
[1727797825301,3.95,2531.7,2531.1,3.95076]
[1727797825602,3.95008,2531.6,2531.1,7.9015]
[1727797825805,3.95008,2531.6,2531.1,3.95075]
[1727797826215,7.90025,2531.6,2531.1,3.95075]
[1727797826415,4.740095,2531.6,2530.9,1.5296]
[1727797826625,3.9507,2531.2,2530.6,6.95151]
[1727797826792,7.90151,2531.2,2530.6,6.95151]
[1727797826987,3.95086,2531.1,2530.5,1.6122]
[1727797827231,3.95104,2531.0,2530.5,3.95178]
[1727797827591,3.95104,2531.0,2530.4,3.95193]
[1727797827926,3.95104,2531.0,2529.6,3.95314]
[1727797827927,3.0,2530.9,2529.8,1.5868]
[1727797828224,3.95171,2530.6,2530.0,3.9525]
[1727797828598,3.95179,2530.5,2529.9,3.95258]
[1727797828807,3.95212,2530.3,2529.9,0.949234]
[1727797829009,3.95212,2530.3,2529.5,1.5305]
[1727797829218,1.6427,2530.6,2529.5,1.5305]
[1727797829543,5.55818,2530.9,2530.3,3.95209]
[1727797829889,5.55818,2530.9,2530.4,3.95192]
[1727797830089,5.55818,2530.9,2530.2,3.95216]
[1727797830325,5.55818,2530.9,2530.1,1.5355]
[1727797830326,3.95155,2530.7,2530.1,1.5355]
[1727797830489,3.95171,2530.6,2530.0,3.95246]
[1727797830688,3.95171,2530.6,2529.8,1.5355]
[1727797830916,3.95171,2530.6,2530.1,3.95227]
[1727797831113,3.95171,2530.6,2529.8,1.5355]
[1727797831114,3.95171,2530.6,2530.0,3.95247]
[1727797831325,3.95171,2530.6,2530.1,0.395247]
[1727797831707,3.95139,2530.8,2530.1,0.395247]
[1727797832035,3.95165,2530.6,2530.1,0.395247]
[1727797832397,3.95203,2530.4,2529.8,5.48829]
[1727797832598,2.162718,2530.9,2529.6,3.95304]
[1727797832599,3.95243,2530.1,2529.6,3.95304]
[1727797832796,3.95267,2530.0,2529.3,3.95353]
[1727797833029,3.95328,2529.6,2528.9,3.95419]
[1727797833243,3.95299,2529.8,2528.9,4.510279]
[1727797833421,1.6076,2529.9,2529.1,3.95397]
[1727797833422,0.04495556,2529.5,2529.1,3.95397]
[1727797833996,0.04495556,2529.5,2529.0,3.95403]
[1727797834354,3.99831556,2529.5,2528.9,4.510279]
[1727797834498,0.04495556,2529.5,2529.1,3.95395]
[1727797834699,0.04495556,2529.5,2528.9,4.510279]
[1727797834932,3.9535,2529.4,2528.9,4.510279]
[1727797835107,0.04486619,2529.4,2529.0,3.95411]
[1727797835315,7.90646,2529.6,2529.0,4.8005489]
[1727797835527,0.04476605,2529.3,2529.0,4.8005489]
[1727797835829,3.95344,2529.5,2529.0,4.8005489]
[1727797836037,0.04486619,2529.4,2528.9,8.464469]
[1727797836400,0.04486619,2529.4,2528.9,4.510279]
[1727797836630,0.04486619,2529.4,2528.9,8.464479]
[1727797837131,0.04486619,2529.4,2529.0,3.95412]
[1727797837336,0.04486619,2529.4,2528.7,3.95449]
[1727797837539,1.6413,2529.3,2528.6,4.0783791]
[1727797837833,1.68594427,2529.3,2528.6,4.0783791]
[1727797838042,5.63963427,2529.3,2528.8,3.95443]
[1727797838535,3.95398,2529.1,2528.6,4.0783791]
[1727797838833,3.95398,2529.1,2528.7,3.95457]
[1727797839066,3.95398,2529.1,2528.6,4.0783791]
[1727797839067,0.04407312,2529.0,2528.6,4.0783791]
[1727797839740,0.04407312,2529.0,2528.7,3.95458]
[1727797839903,1.6413,2529.3,2528.7,0.80329591]
[1727797840098,5.58495,2529.5,2529.0,3.95405]
[1727797840339,3.99816444,2529.2,2528.7,3.95445]
[1727797840562,3.954,2529.1,2528.7,3.95445]
[1727797840704,0.04411426,2529.1,2528.7,3.95445]
[1727797841037,0.04411426,2529.1,2528.6,0.1237391]
[1727797841246,1.6316,2529.5,2529.0,3.95413]
[1727797841445,1.6316,2529.5,2529.1,3.95396]
[1727797841948,1.6316,2529.5,2528.8,3.95432]
[1727797842112,1.6316,2529.5,2528.7,3.95449]
[1727797842113,3.83576,2529.5,2528.7,3.95449]
[1727797842450,3.9543,2528.9,2528.6,0.1237391]
[1727797842739,3.95378,2529.3,2528.6,0.1237391]
[1727797842949,3.95378,2529.3,2528.8,3.95435]
[1727797843146,3.95402,2529.1,2528.6,4.0783891]
[1727797843452,3.95396,2529.2,2528.8,3.95442]
[1727797843743,6.95357,2529.4,2528.8,3.95444]
[1727797843945,3.95357,2529.4,2528.9,3.95427]
[1727797844305,3.95357,2529.4,2528.8,4.75771091]
[1727797844533,3.95374,2529.3,2528.8,4.75767091]
[1727797844712,3.95359,2529.4,2528.9,3.95424]
[1727797844915,3.95359,2529.4,2528.9,3.95418]
[1727797845109,3.95359,2529.4,2528.8,4.75771091]
[1727797845323,3.95359,2529.4,2528.9,3.95427]
[1727797845523,18.64502,2529.5,2529.0,3.95405]
[1727797845710,18.64502,2529.5,2528.9,4.98101809]
[1727797845911,3.95356,2529.4,2528.9,4.98101809]
[1727797846214,3.95356,2529.4,2528.9,3.95427]
[1727797846414,3.95374,2529.3,2528.9,3.95419]
[1727797846738,5.58507,2529.5,2528.7,1.5555]
[1727797847256,5.58507,2529.5,2529.0,3.95401]
[1727797847834,5.58507,2529.5,2528.9,3.95425]
[1727797848013,3.95355,2529.4,2528.9,4.505185]
[1727797848361,3.95355,2529.4,2528.9,3.95418]
[1727797848515,3.95367,2529.3,2528.9,3.95418]
[1727797848826,1.6316,2529.5,2529.0,3.95408]
[1727797849028,13.06,2529.6,2528.7,1.5555]
[1727797849238,3.95314,2529.7,2528.7,1.5555]
[1727797849239,7.90631,2529.7,2529.2,3.95379]
[1727797849459,3.95314,2529.7,2529.1,3.95386]
[1727797849619,3.95314,2529.7,2529.3,3.95365]
[1727797850054,3.95314,2529.7,2529.3,3.95358]
[1727797851270,1.527,2529.8,2529.4,3.95348]
[1727797851757,5.47995,2529.8,2529.3,7.90724]
[1727797851955,5.47995,2529.8,2529.3,8.7375026]
[1727797852162,5.47995,2529.8,2529.3,4.7838526]
[1727797852856,5.47995,2529.8,2529.3,8.7374326]
[1727797852857,3.95295,2529.8,2529.3,8.7374326]
[1727797853026,3.95295,2529.8,2529.4,3.95349]
[1727797853222,3.95295,2529.8,2529.3,4.7838426]
[1727797853422,3.95295,2529.8,2529.4,0.63020426]
[1727797853852,3.95264,2530.0,2529.4,4.58369426]
[1727797854053,1.5881,2530.1,2529.7,3.95303]
[1727797854788,11.30211,2530.3,2529.8,3.95285]
[1727797854992,5.51365,2530.4,2530.0,3.95254]
[1727797855147,4.36493403,2530.6,2530.2,3.95223]
[1727797855491,3.95188,2530.5,2530.0,3.95253]
[1727797855682,3.95171,2530.6,2530.0,3.95253]
[1727797855988,1.5617,2530.7,2530.0,3.95253]
[1727797855989,1.5617,2530.7,2530.3,3.95198]
[1727797856292,5.51318,2530.7,2530.2,3.95225]
[1727797856450,5.51318,2530.7,2530.3,3.95202]
[1727797856451,1.5617,2530.7,2530.3,3.95202]
[1727797856647,1.5617,2530.7,2530.2,3.95216]
[1727797856891,1.5617,2530.7,2530.3,0.395216]
[1727797857193,3.9511,2531.0,2530.3,0.395216]
[1727797857384,1.5942,2531.1,2530.3,0.395216]
[1727797857385,1.5942,2531.1,2530.6,3.95151]
[1727797857683,5.54508,2531.1,2530.6,3.95151]
[1727797858076,3.95101,2531.0,2530.5,3.95175]
[1727797858279,3.95101,2531.0,2530.3,5.491]
[1727797858597,3.95101,2531.0,2530.3,6.0401]
[1727797858800,3.95101,2531.0,2530.5,3.95178]
[1727797859097,5.54512,2531.1,2530.5,3.95178]
[1727797859309,4.5942,2531.1,2530.7,3.95147]
[1727797859591,3.95118,2530.9,2530.4,3.95192]
[1727797859764,3.95113,2531.0,2530.4,3.95192]
[1727797860184,3.95117,2530.9,2530.4,3.95192]
[1727797860398,3.95134,2530.8,2530.1,3.95231]
[1727797860551,3.95134,2530.8,2530.2,3.95222]
[1727797860891,3.95134,2530.8,2530.0,1.6219]
[1727797861222,3.95189,2530.5,2530.0,3.95255]
[1727797861507,3.95132,2530.8,2530.2,3.95223]
[1727797861653,3.95132,2530.8,2530.3,3.95201]
[1727797862422,3.95132,2530.8,2530.2,3.95223]
[1727797862628,3.95132,2530.8,2530.2,3.95213]
[1727797862928,1.5759,2530.9,2530.4,3.95185]
[1727797863129,1.5759,2530.9,2530.5,3.95169]
[1727797863332,3.95111,2531.0,2530.5,3.95169]
[1727797863823,5.51494,2531.2,2530.7,3.95146]
[1727797864019,5.51494,2531.2,2530.8,3.95131]
[1727797864219,3.95048,2531.4,2530.9,3.95116]
[1727797864220,7.90097,2531.4,2530.9,3.95116]
[1727797864454,14.6033,2531.5,2530.9,3.95116]
[1727797864455,1.5433,2531.5,2531.0,3.95099]
[1727797864620,5.49363,2531.5,2530.9,5.59426]
[1727797864966,5.49363,2531.5,2530.9,5.59417]
[1727797864967,1.5433,2531.5,2530.9,5.59417]
[1727797865168,1.5433,2531.5,2531.1,3.95084]
[1727797865322,5.49355,2531.5,2531.0,3.9509]
[1727797865649,1.5433,2531.5,2531.0,3.9509]
[1727797865851,1.5433,2531.5,2531.1,3.95074]
[1727797866081,3.94995,2531.7,2531.1,3.95074]
[1727797866246,5.50326,2531.8,2531.4,3.95038]
[1727797866247,1.5534,2531.8,2531.4,3.95038]
[1727797866450,1.5534,2531.8,2531.4,7.90068]
[1727797866659,1.5534,2531.8,2531.4,3.9503]
[1727797866859,3.94994,2531.7,2531.2,3.95058]
[1727797867064,5.50331,2531.8,2531.3,3.95053]
[1727797867685,5.50331,2531.8,2531.2,7.90117]
[1727797867976,5.50331,2531.8,2531.3,3.95053]
[1727797869034,0.04191191,2531.7,2531.3,3.95053]
[1727797869239,5.50331,2531.8,2531.3,3.95053]
[1727797869577,0.04191191,2531.7,2531.3,3.95053]
[1727797870049,1.6285,2532.1,2531.7,3.94988]
[1727797870238,17.00891,2532.4,2531.7,3.94988]
[1727797870239,18.56351,2532.4,2531.8,3.94965]
[1727797870582,5.50351,2532.4,2531.8,3.94965]
[1727797870768,5.50354,2532.4,2531.3,0.57756365]
[1727797870946,1.5546,2532.4,2532.2,3.9491]
[1727797871275,1.5546,2532.4,2532.0,7.89873]
[1727797871476,1.5546,2532.4,2532.0,3.94935]
[1727797871678,1.5546,2532.4,2532.0,7.89871]
[1727797871988,1.5546,2532.4,2532.0,3.94935]
[1727797872178,1.5546,2532.4,2532.1,3.94926]
[1727797872548,3.9486,2532.6,2532.1,3.94926]
[1727797872751,3.9486,2532.6,2532.0,3.94944]
[1727797872752,3.94866,2532.5,2532.0,3.94944]
[1727797872947,3.9489,2532.4,2531.8,3.94964]
[1727797873371,1.5171,2532.2,2531.6,3.94996]
[1727797873695,3.94992,2531.7,2531.2,5.52109]
[1727797873897,3.94988,2531.8,2531.3,3.95052]
[1727797874080,3.94955,2532.0,2531.5,3.9502]
[1727797874497,7.89911,2532.0,2531.5,3.9502]
[1727797874997,7.89909,2532.0,2531.5,3.9502]
[1727797875196,3.9496,2531.9,2531.5,3.9502]
[1727797875650,7.89907,2532.0,2531.5,3.9502]
[1727797875851,3.94953,2532.0,2531.5,3.9502]
[1727797876251,7.89906,2532.0,2531.5,3.9502]
[1727797876576,4.891116,2532.0,2531.5,3.95021]
[1727797876777,8.840676,2532.0,2531.5,3.95021]
[1727797877082,4.891116,2532.0,2531.5,3.95021]
[1727797877461,5.46633,2532.2,2531.2,1.5705]
[1727797877661,5.46633,2532.2,2531.7,3.94986]
[1727797877902,1.5171,2532.2,2531.7,3.94986]
[1727797878199,1.5171,2532.2,2531.2,1.5705]
[1727797878200,1.5171,2532.2,2531.5,3.95011]
[1727797878493,0.546609,2532.1,2531.6,3.95006]
[1727797878799,1.5171,2532.2,2531.6,3.95005]
[1727797878800,3.94946,2532.0,2531.6,3.95005]
[1727797878964,3.94933,2532.1,2531.5,3.95011]
[1727797879159,3.94962,2531.9,2531.4,3.95037]
[1727797879402,3.94939,2532.1,2531.2,1.5705]
[1727797879583,1.5171,2532.2,2531.8,3.94973]
[1727797879902,6.31288,2532.2,2531.8,3.94975]
[1727797880100,6.31288,2532.2,2531.7,3.9499]
[1727797880305,1.5171,2532.2,2531.8,3.94972]
[1727797880919,1.5171,2532.2,2531.8,7.89937]
[1727797881113,1.5171,2532.2,2531.9,3.94959]
[1727797881321,1.5083,2532.3,2532.0,3.94944]
[1727797881688,5.46411,2532.6,2532.1,3.94926]
[1727797882030,5.46411,2532.6,2532.0,3.94933]
[1727797882031,5.46411,2532.6,2532.2,3.94912]
[1727797882221,9.41271,2532.6,2532.1,3.94928]
[1727797882580,9.41276,2532.6,2532.1,3.94928]
[1727797882990,5.46411,2532.6,2532.1,3.94928]
[1727797883513,5.46411,2532.6,2532.2,3.94912]
[1727797883715,1.5156,2532.6,2532.2,3.94912]
[1727797883884,5.46413,2532.6,2532.2,3.94912]
[1727797884090,0.03977335,2532.5,2532.2,3.94912]
[1727797884476,0.03977335,2532.5,2532.3,3.94896]
[1727797884675,0.03977335,2532.5,2532.4,5.61292]
[1727797884889,13.06,2533.4,2533.1,3.94763]
[1727797884890,14.6468,2533.4,2533.1,3.94763]
[1727797885124,1.5868,2533.4,2533.0,3.94786]
[1727797885420,1.5868,2533.4,2532.7,3.94825]
[1727797885619,3.94773,2533.1,2532.5,3.94856]
[1727797885777,4.342503,2533.1,2532.5,3.94856]
[1727797885979,1.5218,2532.9,2532.6,3.9485]
[1727797886481,1.5218,2532.9,2532.2,3.94901]
[1727797886482,3.94829,2532.8,2532.2,3.94901]
[1727797886677,5.46985,2532.9,2532.4,3.94868]
[1727797886885,7.7570973,2532.9,2532.4,3.94868]
[1727797887222,7.7570973,2532.9,2532.4,7.89741]
[1727797887419,7.7570973,2532.9,2532.4,3.94868]
[1727797887777,5.46985,2532.9,2532.4,3.94868]
[1727797888493,3.94829,2532.8,2532.2,7.89805]
[1727797888739,3.94829,2532.8,2532.2,3.94902]
[1727797888900,3.94829,2532.8,2532.3,3.94885]
[1727797889238,3.94829,2532.8,2532.2,3.94902]
[1727797889239,3.94861,2532.6,2532.2,3.94909]
[1727797889532,4.7383,2532.6,2532.2,3.94909]
[1727797889738,4.73829,2532.6,2532.1,3.94928]